bitfinex/quotes_BTCUSD_20250529
["timestamp","ask_amount","ask_price","bid_price","bid_amount"]
[1748540792192,0.19734907,106410.0,106400.0,1.37051843]
[1748540792409,0.21614385,106410.0,106400.0,1.59270851]
[1748540792658,0.24422123,106410.0,106400.0,0.9961841]
[1748540792881,0.20674703,106410.0,106400.0,1.4526441]
[1748540793099,0.20674703,106410.0,106400.0,1.45487459]
[1748540793313,0.19922853,106410.0,106400.0,1.45487459]
[1748540793526,0.16633508,106410.0,106400.0,1.04894731]
[1748540793741,0.15881658,106410.0,106400.0,1.47366731]
[1748540793970,0.15129808,106410.0,106400.0,1.47366731]
[1748540794192,0.11840463,106410.0,106400.0,1.47366731]
[1748540794437,0.19739368,106430.0,106420.0,0.01454085]
[1748540794658,0.02,106460.0,106440.0,0.02393572]
[1748540794893,0.028189,106530.0,106510.0,0.02816547]
[1748540795156,0.20651397,106530.0,106520.0,0.35454085]
[1748540795358,0.01877113,106540.0,106530.0,0.35454085]
[1748540795573,0.21588055,106540.0,106530.0,1.01021921]
[1748540795794,0.01795652,106540.0,106530.0,0.63333534]
[1748540796011,0.17362906,106550.0,106540.0,0.01454085]
[1748540796012,0.19895822,106550.0,106540.0,0.01454085]
[1748540796226,0.17358908,106550.0,106540.0,0.44794082]
[1748540796439,0.18484253,106550.0,106540.0,0.47561846]
[1748540796655,0.1877552,106560.0,106540.0,1.14608752]
[1748540796656,0.20652378,106560.0,106540.0,1.14608752]
[1748540796871,0.17599939,106560.0,106550.0,0.09105395]
[1748540797289,0.1686303,106560.0,106550.0,0.43105395]
[1748540797504,0.15451249,106560.0,106550.0,0.43105395]
[1748540797722,0.14699568,106560.0,106550.0,0.47763228]
[1748540797937,0.12822771,106560.0,106550.0,0.47763228]
[1748540798152,0.12822771,106560.0,106550.0,0.47863228]
[1748540798153,0.15637891,106560.0,106550.0,0.47863228]
[1748540798358,0.00014798,106560.0,106550.0,4.09918406]
[1748540798569,0.00938112,106590.0,106570.0,0.12148279]
[1748540798798,0.0159282,106600.0,106590.0,0.19701651]
[1748540799032,0.0159282,106600.0,106590.0,0.25738]
[1748540799033,0.0346886,106600.0,106590.0,0.25738]
[1748540799253,0.04421737,106600.0,106590.0,0.59738]
[1748540799466,0.01607585,106600.0,106590.0,1.09122]
[1748540799682,0.01607585,106600.0,106590.0,0.93427569]
[1748540799886,0.01607585,106600.0,106590.0,0.89653833]
[1748540800152,0.01607585,106600.0,106590.0,1.62355215]
[1748540800373,0.01607585,106600.0,106590.0,1.66453362]
[1748540800588,0.01607585,106600.0,106590.0,3.23805262]
[1748540800821,6e-05,106650.0,106630.0,0.34937804]
[1748540801035,0.00020765,106650.0,106640.0,0.60143784]
[1748540801455,0.00020765,106650.0,106640.0,1.48719784]
[1748540801675,0.00020765,106650.0,106640.0,0.93692413]
[1748540801892,0.00020765,106650.0,106640.0,1.39630922]
[1748540802150,0.00220765,106650.0,106640.0,1.58260989]
[1748540802349,0.00220765,106650.0,106640.0,1.62918822]
[1748540802564,0.2034354,106710.0,106640.0,1.62918822]
[1748540802565,0.0252986,106710.0,106700.0,0.19681331]
[1748540802773,0.0252986,106710.0,106700.0,0.73341349]
[1748540802774,0.11809922,106710.0,106700.0,0.73341349]
[1748540803014,0.11809922,106710.0,106680.0,0.19681823]
[1748540803015,0.02811514,106700.0,106680.0,0.19681823]
[1748540803309,0.01642047,106710.0,106700.0,0.21555656]
[1748540803526,0.01642047,106710.0,106700.0,0.64558022]
[1748540804205,0.03516153,106710.0,106700.0,0.53561846]
[1748540804211,0.03516153,106710.0,106700.0,0.46107761]
[1748540804445,0.22258608,106710.0,106700.0,0.86437846]
[1748540804709,0.20665788,106710.0,106700.0,0.86437846]
[1748540804977,0.18738873,106730.0,106720.0,0.34]
[1748540805210,0.18753634,106730.0,106720.0,0.374]
[1748540805430,0.20627459,106730.0,106720.0,0.12505395]
[1748540805658,0.20627459,106730.0,106720.0,0.034]
[1748540806508,0.20627459,106730.0,106720.0,0.038]
[1748540806739,0.20627459,106730.0,106720.0,0.004]
[1748540806982,0.23657459,106730.0,106720.0,0.004]
[1748540807635,0.20627459,106730.0,106720.0,0.004]
[1748540807873,0.20727459,106730.0,106720.0,0.004]
[1748540808139,0.20727459,106730.0,106710.0,0.41505042]
[1748540808140,0.18740629,106720.0,106710.0,0.41505042]
[1748540808357,0.00937013,106720.0,106710.0,0.58596566]
[1748540808571,0.20614673,106720.0,106710.0,0.5526827]
[1748540808797,0.20614673,106720.0,106710.0,0.46162875]
[1748540809021,0.19679486,106710.0,106700.0,0.0001]
[1748540809929,0.00014761,106730.0,106720.0,0.52740629]
[1748540810178,0.00014761,106730.0,106720.0,1.04626127]
[1748540810445,0.00014761,106730.0,106720.0,1.0368914]
[1748540810686,0.00014761,106730.0,106720.0,1.2401148]
[1748540810927,0.20627406,106730.0,106720.0,0.8455948]
[1748540811187,0.20627406,106730.0,106720.0,0.74]
[1748540811188,0.20727459,106730.0,106720.0,0.74]
[1748540812315,0.20727459,106730.0,106720.0,0.341]
[1748540812752,0.20727459,106730.0,106720.0,0.001]
[1748540812984,0.91030854,106730.0,106720.0,0.001]
[1748540813218,0.26906561,106710.0,106700.0,0.0001]
[1748540813658,0.36011956,106710.0,106700.0,0.0001]
[1748540814095,0.20616561,106710.0,106700.0,0.0001]
[1748540814320,0.16788233,106710.0,106700.0,0.0001]
[1748540814548,0.18662409,106710.0,106700.0,0.0001]
[1748540814767,0.17912953,106710.0,106700.0,0.0001]
[1748540815001,0.14634081,106710.0,106700.0,0.1056948]
[1748540815228,0.13984625,106710.0,106700.0,0.12376932]
[1748540815452,0.13235169,106710.0,106700.0,0.12611204]
[1748540815722,0.002,106710.0,106700.0,0.31355346]
[1748540815945,0.002,106710.0,106700.0,0.46376932]
[1748540815946,0.2006714,106710.0,106700.0,0.46376932]
[1748540816195,0.29172535,106710.0,106700.0,0.0011]
[1748540816424,0.35572535,106710.0,106700.0,0.0011]
[1748540816636,0.2006714,106710.0,106700.0,0.0011]
[1748540817303,0.2006714,106710.0,106700.0,0.01894695]
[1748540817524,0.2006714,106710.0,106700.0,0.0001]
[1748540819700,0.2008714,106710.0,106700.0,0.0001]
[1748540821113,0.2332714,106710.0,106700.0,0.0001]
[1748540821348,0.2639714,106710.0,106700.0,0.0001]
[1748540821577,0.35502535,106710.0,106700.0,0.0001]
[1748540821804,0.2008714,106710.0,106700.0,0.0001]
[1748540822513,0.35422535,106710.0,106700.0,0.0001]
[1748540822751,1.24274535,106710.0,106700.0,0.0001]
[1748540822967,1.24274535,106710.0,106660.0,0.01356428]
[1748540822968,0.20624293,106670.0,106660.0,0.01356428]
[1748540823196,0.20624293,106670.0,106650.0,0.07505042]
[1748540823197,0.19688712,106660.0,106650.0,0.07505042]
[1748540823705,0.19688712,106660.0,106650.0,0.16610437]
[1748540824159,0.20630094,106640.0,106630.0,0.07505042]
[1748540824379,0.20630094,106640.0,106630.0,0.21369768]
[1748540824634,0.20630094,106640.0,106630.0,0.55369768]
[1748540824869,0.20630094,106640.0,106630.0,0.22897138]
[1748540825108,0.29735489,106640.0,106630.0,0.00603815]
[1748540825363,0.29735489,106640.0,106580.0,0.07505042]
[1748540825364,0.20639701,106590.0,106580.0,0.74939088]
[1748540825597,0.22513858,106600.0,106590.0,0.34]
[1748540825829,0.00937831,106620.0,106600.0,0.00938024]
[1748540826068,0.00937831,106620.0,106590.0,0.3712]
[1748540826069,0.20637836,106600.0,106590.0,0.3712]
[1748540826302,0.19699759,106600.0,106590.0,0.09105395]
[1748540826530,0.20637854,106600.0,106590.0,0.43975535]
[1748540826757,0.20637854,106600.0,106590.0,0.43975524]
[1748540827004,0.20637801,106600.0,106590.0,0.09105395]
[1748540827273,0.21573988,106610.0,106600.0,0.01454085]
[1748540827510,0.22511977,106610.0,106600.0,0.1085948]
[1748540827754,0.2157405,106610.0,106600.0,0.16024428]
[1748540827989,0.19698125,106610.0,106600.0,0.16024428]
[1748540828232,0.19698125,106610.0,106600.0,0.05464948]
[1748540828473,0.19701642,106590.0,106580.0,0.00014765]
[1748540828937,0.19701642,106590.0,106580.0,0.00885131]
[1748540829175,0.19701642,106590.0,106580.0,0.00014765]
[1748540829637,0.35041642,106590.0,106580.0,0.00885199]
[1748540829891,0.35041642,106590.0,106580.0,0.00014765]
[1748540830120,0.47317037,106590.0,106580.0,0.00014765]
[1748540830363,0.50367037,106590.0,106580.0,0.00014765]
[1748540830616,0.50367037,106590.0,106550.0,0.0001]
[1748540830617,0.20645582,106560.0,106550.0,0.0001]
[1748540830846,0.20645582,106560.0,106550.0,0.00024765]
[1748540832066,0.20745582,106560.0,106550.0,0.00024765]
[1748540832571,0.10745582,106560.0,106550.0,0.00024765]
[1748540832794,0.12897063,106560.0,106550.0,0.00024765]
[1748540833482,0.28222458,106560.0,106550.0,0.00024765]
[1748540833801,0.28047791,106560.0,106550.0,0.00024765]
[1748540834216,0.82327791,106560.0,106550.0,0.00024765]
[1748540834622,0.43391791,106560.0,106550.0,0.00024765]
[1748540834806,1.22795791,106560.0,106550.0,0.00024765]
[1748540835704,1.56795791,106560.0,106550.0,0.00024765]
[1748540835912,1.61795791,106560.0,106550.0,0.00024765]
[1748540836582,1.61483791,106560.0,106550.0,0.00024765]
[1748540836799,1.61783791,106560.0,106550.0,0.00024765]
[1748540837445,1.61539791,106560.0,106550.0,0.00024765]
[1748540837761,0.70773791,106560.0,106550.0,0.00024765]
[1748540837866,0.85741791,106560.0,106550.0,0.00024765]
[1748540838344,0.88921791,106560.0,106550.0,0.00024765]
[1748540839775,0.1971644,106510.0,106500.0,0.0001]
[1748540840013,0.28821835,106510.0,106500.0,0.00059346]
[1748540840311,0.1971644,106510.0,106500.0,0.00059346]
[1748540841032,0.1981644,106510.0,106500.0,0.00059346]
[1748540841759,0.1981644,106510.0,106500.0,0.00922455]
[1748540841990,0.1981644,106510.0,106500.0,0.00059346]
[1748540842226,0.1971644,106510.0,106500.0,0.00059346]
[1748540842444,0.1971644,106510.0,106500.0,0.44853559]
[1748540842675,0.1971644,106510.0,106500.0,0.5695769]
[1748540842676,0.18977579,106510.0,106500.0,0.5695769]
[1748540842936,0.19077579,106510.0,106500.0,0.93218115]
[1748540843163,0.19077579,106510.0,106500.0,0.67446886]
[1748540843387,0.19716396,106510.0,106500.0,0.67446886]
[1748540843613,0.18877579,106510.0,106500.0,1.09308745]
[1748540843831,0.001,106510.0,106500.0,0.91443848]
[1748540844053,0.19714259,106530.0,106510.0,0.21170534]
[1748540844343,0.18777062,106540.0,106530.0,0.07914085]
[1748540844344,0.21592798,106540.0,106530.0,0.07914085]
[1748540844572,0.20654246,106540.0,106530.0,0.5101948]
[1748540845025,0.19715667,106540.0,106530.0,0.5101948]
[1748540845247,0.19715667,106540.0,106530.0,0.5625534]
[1748540846139,0.19715667,106540.0,106530.0,0.8801934]
[1748540846374,0.19715667,106540.0,106530.0,0.06689945]
[1748540846595,0.19715667,106540.0,106530.0,0.01454085]
[1748540846885,0.19715667,106540.0,106530.0,0.01754085]
[1748540847573,0.19715667,106540.0,106530.0,0.003]
[1748540854254,0.19715667,106540.0,106530.0,0.01169769]
[1748540855024,0.19715667,106540.0,106530.0,0.01171738]
[1748540855255,0.19715667,106540.0,106530.0,0.003]
[1748540856366,0.19715667,106540.0,106530.0,0.01175367]
[1748540856580,0.19715667,106540.0,106530.0,0.011754]
[1748540856802,0.19715667,106540.0,106530.0,0.003]
[1748540857042,0.19715667,106540.0,106530.0,0.01175486]
[1748540857264,0.19715667,106540.0,106530.0,0.01175511]
[1748540857470,0.19715667,106540.0,106530.0,0.003]
[1748540857691,0.19715667,106540.0,106530.0,0.01175495]
[1748540858394,0.19715667,106540.0,106530.0,0.01175473]
[1748540858616,0.19715667,106540.0,106530.0,0.003]
[1748540859264,0.34921062,106540.0,106530.0,0.003]
[1748540859505,0.68921062,106540.0,106530.0,0.003]
[1748540860841,0.70036763,106540.0,106530.0,0.003]
[1748540861053,0.20655274,106510.0,106500.0,0.00059346]
[1748540861288,0.19716413,106510.0,106500.0,0.09164741]
[1748540861519,0.18777144,106530.0,106510.0,0.34]
[1748540861758,0.001,106540.0,106530.0,0.3639277]
[1748540861995,0.30040346,106570.0,106550.0,0.52770517]
[1748540862287,0.18768768,106560.0,106550.0,0.93440877]
[1748540862507,0.21583976,106560.0,106550.0,1.03139861]
[1748540862723,0.21583976,106560.0,106550.0,1.05955761]
[1748540862940,0.21583967,106560.0,106550.0,1.09753536]
[1748540863154,0.20645547,106560.0,106550.0,1.09753528]
[1748540863367,0.18768768,106560.0,106550.0,1.10046887]
[1748540863605,0.22522326,106560.0,106550.0,1.10046462]
[1748540863835,0.19707127,106560.0,106550.0,1.10046433]
[1748540864051,0.22522308,106560.0,106550.0,1.09389436]
[1748540864277,0.22522308,106560.0,106550.0,1.09489436]
[1748540864278,0.19707135,106560.0,106550.0,1.09489436]
[1748540864497,0.22522387,106560.0,106550.0,1.10046299]
[1748540864719,0.2158402,106560.0,106550.0,1.10110299]
[1748540864936,0.2158402,106560.0,106550.0,1.10298299]
[1748540864937,0.20645626,106560.0,106550.0,1.10298299]
[1748540865157,0.20645626,106560.0,106550.0,1.04028299]
[1748540865373,0.20645626,106560.0,106550.0,1.03535358]
[1748540865597,0.20645626,106560.0,106550.0,0.52343358]
[1748540865824,0.20645626,106560.0,106550.0,0.89305992]
[1748540866067,0.20745626,106560.0,106550.0,0.89050495]
[1748540866284,0.20745626,106560.0,106550.0,0.89705991]
[1748540866929,0.20745626,106560.0,106550.0,0.08182511]
[1748540867211,0.20745626,106560.0,106550.0,0.08680877]
[1748540867466,0.20745626,106560.0,106550.0,0.09336216]
[1748540867687,0.20745626,106560.0,106550.0,0.08981158]
[1748540867920,0.20745626,106560.0,106550.0,0.09636477]
[1748540868133,0.20745626,106560.0,106550.0,0.08981153]
[1748540868555,0.20745626,106560.0,106550.0,0.07527068]
[1748540868781,0.20745626,106560.0,106550.0,0.44315068]
[1748540868994,0.20745626,106560.0,106550.0,0.07226792]
[1748540869220,0.20745626,106560.0,106550.0,0.07882129]
[1748540869435,0.20745626,106560.0,106550.0,0.07226792]
[1748540870373,0.20745626,106560.0,106550.0,0.07527068]
[1748540870589,0.20745626,106560.0,106550.0,0.08182391]
[1748540871045,0.19807144,106560.0,106550.0,0.24421164]
[1748540871288,0.19807144,106560.0,106550.0,0.58186548]
[1748540871289,0.18868768,106560.0,106550.0,0.58186548]
[1748540871512,0.21683976,106560.0,106550.0,0.58186548]
[1748540871729,0.20745547,106560.0,106550.0,0.58186548]
[1748540871960,0.19807144,106560.0,106550.0,0.58186548]
[1748540872430,0.21683967,106560.0,106550.0,0.58479144]
[1748540872902,0.21683967,106560.0,106550.0,0.59134368]
[1748540873131,0.22622405,106560.0,106550.0,0.58479144]
[1748540873822,0.22622405,106560.0,106550.0,0.59134396]
[1748540874051,0.22622405,106560.0,106550.0,0.58479144]
[1748540874547,0.20745626,106560.0,106550.0,0.01849918]
[1748540874787,0.20745626,106560.0,106550.0,0.01257046]
[1748540875456,0.20745626,106560.0,106550.0,0.02711131]
[1748540875679,0.20745626,106560.0,106550.0,0.01257046]
[1748540875911,0.20745626,106560.0,106550.0,0.41773551]
[1748540876387,0.20745626,106560.0,106550.0,0.05437551]
[1748540877104,0.20745626,106560.0,106550.0,0.05237551]
[1748540877355,0.20645626,106560.0,106550.0,0.04837551]
[1748540877793,0.20645626,106560.0,106550.0,0.05137551]
[1748540883186,0.20645626,106560.0,106550.0,0.41089551]
[1748540883869,0.20645626,106560.0,106550.0,0.05137551]
[1748540884086,0.20645626,106560.0,106550.0,0.00957046]
[1748540884087,0.29751021,106560.0,106550.0,0.00957046]
[1748540884333,0.70071021,106560.0,106550.0,0.00957046]
[1748540884559,0.71192466,106560.0,106550.0,0.00957046]
[1748540885013,0.72149466,106560.0,106550.0,0.00957046]
[1748540885750,0.72149466,106560.0,106550.0,0.00757046]
[1748540886183,0.72149466,106560.0,106550.0,0.00657046]
[1748540886406,0.72549466,106560.0,106550.0,0.00657046]
[1748540886628,0.72649466,106560.0,106550.0,0.00957046]
[1748540887064,0.72549466,106560.0,106550.0,0.00657046]
[1748540887278,0.72949466,106560.0,106550.0,0.00757046]
[1748540888187,0.72949466,106560.0,106550.0,0.00767046]
[1748540890738,0.20655274,106510.0,106500.0,0.3401]
[1748540890975,0.20655274,106510.0,106500.0,0.00059346]
[1748540891861,0.20655274,106510.0,106500.0,0.46170826]
[1748540892075,0.20655274,106510.0,106500.0,0.46570826]
[1748540892076,0.20755274,106510.0,106500.0,0.46570826]
[1748540892316,0.20755274,106510.0,106500.0,0.87150826]
[1748540892539,0.20755221,106510.0,106500.0,0.87651217]
[1748540892758,0.20755221,106510.0,106500.0,1.00715217]
[1748540892988,0.21694082,106510.0,106500.0,1.00715217]
[1748540893241,0.22632917,106510.0,106500.0,1.00715217]
[1748540893455,0.21694109,106510.0,106500.0,1.01588703]
[1748540893915,0.19816449,106510.0,106500.0,0.01833235]
[1748540894148,0.19816449,106510.0,106500.0,0.00659346]
[1748540894814,0.19716449,106510.0,106500.0,0.00259346]
[1748540895518,0.19716449,106510.0,106500.0,0.00059346]
[1748540895726,0.28821844,106510.0,106500.0,0.00059346]
[1748540895965,0.35171844,106510.0,106500.0,0.00059346]
[1748540897555,0.48235844,106510.0,106500.0,0.00059346]
[1748540898006,0.48335844,106510.0,106500.0,0.00059346]
[1748540898244,0.82335844,106510.0,106500.0,0.00059346]
[1748540898484,1.23887844,106510.0,106500.0,0.00059346]
[1748540898712,1.11023844,106510.0,106500.0,0.00059346]
[1748540898937,1.23087844,106510.0,106500.0,0.00059346]
[1748540899162,1.58335844,106510.0,106500.0,0.00059346]
[1748540899376,1.57667844,106510.0,106500.0,0.00059346]
[1748540899598,1.58067844,106510.0,106500.0,0.00159346]
[1748540899828,1.58467844,106510.0,106500.0,0.00159346]
[1748540900299,1.58427844,106510.0,106500.0,0.00159346]
[1748540901140,1.67840096,106510.0,106450.0,0.02]
[1748540901363,0.27070801,106430.0,106420.0,0.00682962]
[1748540901601,0.27074686,106410.0,106400.0,0.0201]
[1748540901837,0.27074686,106410.0,106390.0,0.00302753]
[1748540901838,0.19736823,106400.0,106390.0,0.00302753]
[1748540902077,0.66440823,106400.0,106390.0,0.0001]
[1748540902302,0.69994183,106400.0,106390.0,0.0001]
[1748540902535,0.76334183,106400.0,106390.0,0.0001]
[1748540902982,0.76334183,106400.0,106390.0,0.00024798]
[1748540903235,1.20775578,106400.0,106390.0,0.00024798]
[1748540903481,1.21059578,106400.0,106390.0,0.00024798]
[1748540903934,1.17506218,106400.0,106390.0,0.00024798]
[1748540904167,0.83606218,106400.0,106390.0,0.00024798]
[1748540904622,0.35582218,106400.0,106390.0,0.00024798]
[1748540904862,0.83562218,106400.0,106390.0,0.00024798]
[1748540905803,0.83514218,106400.0,106390.0,0.00024798]
[1748540906770,0.29242218,106400.0,106390.0,0.00024798]
[1748540907008,0.20136823,106400.0,106390.0,0.00024798]
[1748540908054,0.21076611,106400.0,106390.0,0.50924278]
[1748540908262,0.21076637,106400.0,106390.0,0.50924278]
[1748540908971,0.20976637,106400.0,106390.0,0.50924278]
[1748540909170,0.19836823,106400.0,106390.0,0.50924278]
[1748540909586,0.18896992,106400.0,106390.0,0.51324278]
[1748540909797,0.18896992,106400.0,106390.0,0.86436278]
[1748540910010,0.18896992,106400.0,106390.0,0.87376215]
[1748540910211,0.19836797,106400.0,106390.0,0.86436278]
[1748540910419,0.21616398,106400.0,106390.0,0.86436278]
[1748540910649,0.21716398,106400.0,106390.0,0.86636278]
[1748540911071,0.1983677,106400.0,106390.0,0.86636278]
[1748540911285,0.1983677,106400.0,106390.0,1.38634244]
[1748540911286,0.001,106400.0,106390.0,1.38634244]
[1748540911499,0.001,106400.0,106390.0,0.89883652]
[1748540911709,0.001,106400.0,106390.0,1.75478752]
[1748540911937,0.2265623,106400.0,106390.0,0.91624278]
[1748540912166,0.18796992,106400.0,106390.0,1.79732278]
[1748540912384,0.19735192,106410.0,106400.0,0.4025]
[1748540912630,0.19735192,106410.0,106400.0,0.49355395]
[1748540912836,0.20674909,106410.0,106400.0,0.49355395]
[1748540913050,0.19735192,106410.0,106400.0,0.49355395]
[1748540913265,0.18795493,106410.0,106400.0,0.69092218]
[1748540913500,0.19734607,106420.0,106400.0,0.65236135]
[1748540913715,0.19734607,106420.0,106410.0,0.15315395]
[1748540913716,0.23493147,106420.0,106410.0,0.15315395]
[1748540914586,0.20674332,106420.0,106410.0,0.15315395]
[1748540914838,0.20674332,106420.0,106410.0,0.64616394]
[1748540915046,0.20774332,106420.0,106410.0,0.6458148]
[1748540915454,0.20774209,106420.0,106410.0,0.6458148]
[1748540915676,0.18893459,106420.0,106410.0,0.9858148]
[1748540915896,0.18893459,106420.0,106410.0,1.10109532]
[1748540916167,0.18893459,106420.0,106410.0,1.10998941]
[1748540916390,0.18791694,106430.0,106410.0,1.3053391]
[1748540916600,0.20669502,106460.0,106440.0,0.34]
[1748540916814,0.20669502,106460.0,106440.0,1.37583395]
[1748540916815,0.21606227,106450.0,106440.0,1.37583395]
[1748540917044,0.22545608,106450.0,106440.0,1.37583395]
[1748540917276,0.22545608,106450.0,106440.0,0.49475395]
[1748540917481,0.23485016,106450.0,106440.0,0.49475395]
[1748540917691,0.22545608,106450.0,106440.0,0.49475395]
[1748540917915,0.18790907,106460.0,106440.0,0.68280121]
[1748540917916,0.20669466,106460.0,106440.0,0.68280121]
[1748540918132,0.20669502,106460.0,106450.0,0.5078948]
[1748540918342,0.20669502,106460.0,106450.0,0.4778948]
[1748540918547,0.20669502,106460.0,106450.0,0.34]
[1748540920025,0.19730165,106460.0,106450.0,0.4455948]
[1748540920276,0.19730165,106460.0,106450.0,0.55516908]
[1748540920277,0.20669484,106460.0,106450.0,0.55516908]
[1748540920487,0.20769484,106460.0,106450.0,0.55516908]
[1748540920928,0.21708794,106460.0,106450.0,0.55516908]
[1748540921163,0.21708786,106460.0,106450.0,0.55516908]
[1748540921383,0.21708786,106460.0,106450.0,0.55526908]
[1748540921819,0.18890907,106460.0,106450.0,0.55526908]
[1748540922043,0.19830147,106460.0,106450.0,0.56466307]
[1748540922251,0.19830165,106460.0,106450.0,0.55526908]
[1748540922684,0.2170876,106460.0,106450.0,0.55526908]
[1748540922908,0.20769449,106460.0,106450.0,0.55526908]
[1748540923142,0.2160876,106460.0,106450.0,0.55526908]
[1748540923336,0.2170876,106460.0,106450.0,0.56026908]
[1748540923797,0.2160876,106460.0,106450.0,0.55726908]
[1748540924039,0.1770876,106460.0,106450.0,0.56026908]
[1748540924293,0.16769502,106460.0,106450.0,0.49526908]
[1748540924543,0.16944169,106460.0,106450.0,0.0051]
[1748540924787,0.26049564,106460.0,106450.0,0.0051]
[1748540925009,0.32034897,106460.0,106450.0,0.0051]
[1748540925677,0.31934897,106460.0,106450.0,0.0021]
[1748540925898,0.31934897,106460.0,106450.0,0.0031]
[1748540926116,0.31934897,106460.0,106450.0,0.0011]
[1748540926339,0.32134897,106460.0,106450.0,0.0011]
[1748540926555,0.32134897,106460.0,106450.0,0.0001]
[1748540927200,0.32334897,106460.0,106450.0,0.0001]
[1748540930501,0.26174897,106460.0,106450.0,0.0001]
[1748540930948,0.17069502,106460.0,106450.0,0.0001]
[1748540931233,0.17244169,106460.0,106450.0,0.0001]
[1748540931897,0.17069502,106460.0,106450.0,0.0001]
[1748540932327,0.17244169,106460.0,106450.0,0.0001]
[1748540933425,0.26349564,106460.0,106450.0,0.0001]
[1748540933661,0.32264897,106460.0,106450.0,0.0001]
[1748540934360,0.17069502,106460.0,106450.0,0.0001]
[1748540934572,0.17244169,106460.0,106450.0,0.0001]
[1748540934790,0.17069502,106460.0,106450.0,0.0001]
[1748540935711,0.17069502,106460.0,106450.0,0.44804316]
[1748540935712,0.16130218,106460.0,106450.0,0.44804316]
[1748540935929,0.16130218,106460.0,106450.0,0.49051391]
[1748540936384,0.16130218,106460.0,106450.0,0.55161391]
[1748540940337,0.16130218,106460.0,106450.0,0.49051391]
[1748540940852,0.16130218,106460.0,106450.0,0.0001]
[1748540940853,0.3181028,106460.0,106450.0,0.0001]
[1748540941086,0.31635613,106460.0,106450.0,0.0001]
[1748540941540,0.72749707,106460.0,106450.0,0.0001]
[1748540941979,0.75570007,106460.0,106450.0,0.0001]
[1748540942202,0.74370007,106460.0,106450.0,0.0001]
[1748540942457,0.17444312,106460.0,106450.0,0.0011]
[1748540942711,0.16304885,106460.0,106450.0,0.0011]
[1748540942943,0.16604885,106460.0,106450.0,0.0011]
[1748540943394,0.16430218,106460.0,106450.0,0.0011]
[1748540943841,0.16604885,106460.0,106450.0,0.0011]
[1748540944063,0.16430218,106460.0,106450.0,0.0011]
[1748540944307,0.15730218,106460.0,106450.0,0.0001]
[1748540944550,0.15930218,106460.0,106450.0,0.0001]
[1748540945441,0.16104885,106460.0,106450.0,0.0001]
[1748540947668,0.2521028,106460.0,106450.0,0.0001]
[1748540947889,0.31285613,106460.0,106450.0,0.0001]
[1748540950996,0.65285613,106460.0,106450.0,0.0001]
[1748540951230,0.70285613,106460.0,106450.0,0.0001]
[1748540951449,0.7140246,106460.0,106450.0,0.0001]
[1748540953025,0.7640246,106460.0,106450.0,0.0001]
[1748540953687,0.78882282,106460.0,106450.0,0.0001]
[1748540953911,0.77765435,106460.0,106450.0,0.0001]
[1748540954573,0.7788255,106460.0,106450.0,0.0001]
[1748540954808,0.34282728,106460.0,106450.0,0.0001]
[1748540955034,0.33365613,106460.0,106450.0,0.0001]
[1748540955523,0.36435613,106460.0,106450.0,0.0001]
[1748540955764,0.36335613,106460.0,106450.0,0.0001]
[1748540956003,0.33265613,106460.0,106450.0,0.0001]
[1748540956227,0.25335613,106460.0,106450.0,0.0011]
[1748540961195,0.31575613,106460.0,106450.0,0.0011]
[1748540961657,0.32575613,106460.0,106450.0,0.0011]
[1748540961888,0.33693072,106460.0,106450.0,0.0011]
[1748540962115,0.32693072,106460.0,106450.0,0.0011]
[1748540962365,0.3381029,106460.0,106450.0,0.0011]
[1748540962585,0.3068029,106460.0,106450.0,0.0011]
[1748540962809,0.29563072,106460.0,106450.0,0.0011]
[1748540963027,0.25335613,106460.0,106450.0,0.0011]
[1748540963743,0.31925613,106460.0,106450.0,0.0011]
[1748540963979,0.33042831,106460.0,106450.0,0.0011]
[1748540964210,0.29722831,106460.0,106450.0,0.0011]
[1748540964437,0.28605613,106460.0,106450.0,0.0011]
[1748540965115,0.25335613,106460.0,106450.0,0.0011]
[1748540966927,0.16230218,106460.0,106450.0,0.0011]
[1748540967156,0.16404885,106460.0,106450.0,0.0011]
[1748540967865,0.2551028,106460.0,106450.0,0.0011]
[1748540968110,0.25335613,106460.0,106450.0,0.0011]
[1748540968331,0.16230218,106460.0,106450.0,0.0011]
[1748540968556,0.16404885,106460.0,106450.0,0.0011]
[1748540970435,0.31385613,106460.0,106450.0,0.0011]
[1748540970665,0.32502042,106460.0,106450.0,0.0011]
[1748540971141,0.72502743,106460.0,106450.0,0.0011]
[1748540971369,0.71385613,106460.0,106450.0,0.0011]
[1748540972523,0.72865435,106460.0,106450.0,0.0011]
[1748540973918,0.73982474,106460.0,106450.0,0.0011]
[1748540974663,0.72865435,106460.0,106450.0,0.0011]
[1748540977710,0.73983299,106460.0,106450.0,0.0011]
[1748540977904,0.72503477,106460.0,106450.0,0.0011]
[1748540978144,0.73983299,106460.0,106450.0,0.0011]
[1748540978368,0.72503477,106460.0,106450.0,0.0011]
[1748540979298,0.73983299,106460.0,106450.0,0.0011]
[1748540979516,0.7398347,106460.0,106450.0,0.0011]
[1748540979733,0.72503648,106460.0,106450.0,0.0011]
[1748540979964,0.69503648,106460.0,106450.0,0.0011]
[1748540980199,0.72793648,106460.0,106450.0,0.0011]
[1748540980412,0.7427347,106460.0,106450.0,0.0011]
[1748540980647,0.73155435,106460.0,106450.0,0.0011]
[1748540982570,0.74273596,106460.0,106450.0,0.0011]
[1748540983036,0.60453774,106460.0,106450.0,0.0011]
[1748540983276,0.26453774,106460.0,106450.0,0.0011]
[1748540983731,0.26453898,106460.0,106450.0,0.0011]
[1748540985803,0.25335613,106460.0,106450.0,0.0011]
[1748540988531,0.16230218,106460.0,106450.0,0.0646]
[1748540988753,0.16404885,106460.0,106450.0,0.07857984]
[1748540989269,0.16404885,106460.0,106450.0,0.0011]
[1748540990258,0.16404885,106460.0,106450.0,0.0654]
[1748540990744,0.16404885,106460.0,106450.0,0.0011]
[1748540992373,0.16230218,106460.0,106450.0,0.064]
[1748540992602,0.5951028,106460.0,106450.0,0.0011]
[1748540992838,0.77747953,106460.0,106450.0,0.0011]
[1748540993088,0.84213626,106460.0,106450.0,0.0011]
[1748540993320,0.80711339,106460.0,106450.0,0.0011]
[1748540993996,0.79491108,106460.0,106450.0,0.0011]
[1748540995392,0.26815435,106460.0,106450.0,0.0011]
[1748540995646,0.25335613,106460.0,106450.0,0.0011]
[1748540996782,0.25335613,106460.0,106450.0,0.0642]
[1748540997073,0.16230218,106460.0,106450.0,0.0706348]
[1748540998288,0.16404885,106460.0,106450.0,0.0706348]
[1748540999476,0.16104885,106460.0,106450.0,0.0696348]
[1748541001039,0.15930218,106460.0,106450.0,0.0696348]
[1748541001263,0.14990907,106460.0,106450.0,0.0696348]
[1748541001477,0.17808751,106460.0,106450.0,2.3997284]
[1748541001683,0.18748062,106460.0,106450.0,1.8102016]